[Event "Titled Tuesday Blitz June 20 Early 2023"]
[White "Quesada Perez, Yuniesky"]
[Black "Lehtosaari, Mauri"]
[WhiteFideId "3504409"]
[BlackFideId "501999"]
[WhiteElo "2585"]
[BlackElo "2503"]
[Result "1-0"]
[Round "3"]
[TimeControl "180+2"]
[Date "2023.06.20"]
[WhiteClock "0:00:45"]
[BlackClock "0:00:00"]
[Board "81"]

1. e4 {[%clk 0:03:00]}  c5 {[%clk 0:02:51]} 2. Nf3 {[%clk 0:03:00]}  e6 {[%clk 0:02:50]} 3. d4 {[%clk 0:03:00]}  cxd4 {[%clk 0:02:50]} 4. Nxd4 {[%clk 0:03:01]}  Nc6 {[%clk 0:02:49]} 5. Nc3 {[%clk 0:03:01]}  Qc7 {[%clk 0:02:49]} 6. f4 {[%clk 0:02:59]}  a6 {[%clk 0:02:41]} 7. Nxc6 {[%clk 0:03:00]}  bxc6 {[%clk 0:02:27]} 8. Bd3 {[%clk 0:02:59]}  d5 {[%clk 0:02:26]} 9. O-O {[%clk 0:02:59]}  Bc5+ {[%clk 0:02:24]} 10. Kh1 {[%clk 0:02:58]}  h5 {[%clk 0:02:10]} 11. Qe2 {[%clk 0:02:51]}  Ne7 {[%clk 0:01:37]} 12. Na4 {[%clk 0:02:25]}  Ba7 {[%clk 0:01:33]} 13. c4 {[%clk 0:02:25]}  d4 {[%clk 0:01:22]} 14. c5 {[%clk 0:02:21]}  h4 {[%clk 0:01:19]} 15. h3 {[%clk 0:02:15]}  Ng8 {[%clk 0:01:08]} 16. f5 {[%clk 0:02:02]}  e5 {[%clk 0:01:06]} 17. Bg5 {[%clk 0:02:00]}  Nf6 {[%clk 0:01:03]} 18. Qf2 {[%clk 0:01:58]}  Qa5 {[%clk 0:00:56]} 19. b3 {[%clk 0:01:47]}  Bxc5 {[%clk 0:00:53]} 20. Nxc5 {[%clk 0:01:45]}  Qxc5 {[%clk 0:00:54]} 21. Bxh4 {[%clk 0:01:45]}  Qd6 {[%clk 0:00:51]} 22. Rac1 {[%clk 0:01:20]}  Bd7 {[%clk 0:00:47]} 23. Bg3 {[%clk 0:01:17]}  a5 {[%clk 0:00:36]} 24. Qc2 {[%clk 0:01:16]}  Nh5 {[%clk 0:00:32]} 25. Bh2 {[%clk 0:01:16]}  Nf6 {[%clk 0:00:16]} 26. Qc5 {[%clk 0:01:13]}  Qxc5 {[%clk 0:00:16]} 27. Rxc5 {[%clk 0:01:12]}  a4 {[%clk 0:00:17]} 28. b4 {[%clk 0:01:09]}  a3 {[%clk 0:00:14]} 29. Bxe5 {[%clk 0:01:04]}  Ra4 {[%clk 0:00:09]} 30. Rb1 {[%clk 0:01:01]}  O-O {[%clk 0:00:08]} 31. Bxd4 {[%clk 0:00:56]}  Re8 {[%clk 0:00:06]} 32. Re5 {[%clk 0:00:49]}  Rb8 {[%clk 0:00:04]} 33. Bc3 {[%clk 0:00:46]}  Ne8 {[%clk 0:00:00]} 34. Ra5 {[%clk 0:00:45]} 1-0


[Site "https://www.chess.com"]

[Event "Titled Tuesday Blitz June 20 Early 2023"]
[White "Rodchenkov, Sergey D."]
[Black "Hambleton, Aman"]
[WhiteFideId "4168712"]
[BlackFideId "2606577"]
[WhiteElo "2277"]
[BlackElo "2511"]
[Result "1-0"]
[Round "3"]
[TimeControl "180+2"]
[Date "2023.06.20"]
[WhiteClock "0:00:09"]
[BlackClock "0:00:00"]
[Board "82"]

1. e4 {[%clk 0:03:00]}  b6 {[%clk 0:02:58]} 2. d4 {[%clk 0:03:00]}  Bb7 {[%clk 0:02:54]} 3. Bd3 {[%clk 0:03:00]}  e6 {[%clk 0:02:51]} 4. Qe2 {[%clk 0:03:00]}  d5 {[%clk 0:02:51]} 5. exd5 {[%clk 0:02:49]}  Qxd5 {[%clk 0:02:52]} 6. Nf3 {[%clk 0:02:43]}  Nf6 {[%clk 0:02:52]} 7. Nc3 {[%clk 0:02:38]}  Bb4 {[%clk 0:02:52]} 8. O-O {[%clk 0:02:37]}  Bxc3 {[%clk 0:02:51]} 9. bxc3 {[%clk 0:02:38]}  Qh5 {[%clk 0:02:52]} 10. Ne5 {[%clk 0:02:31]}  Qxe2 {[%clk 0:02:53]} 11. Bxe2 {[%clk 0:02:31]}  Nbd7 {[%clk 0:02:53]} 12. Nxd7 {[%clk 0:02:29]}  Nxd7 {[%clk 0:02:52]} 13. Ba3 {[%clk 0:02:27]}  O-O-O {[%clk 0:02:50]} 14. f3 {[%clk 0:02:12]}  Rhe8 {[%clk 0:02:42]} 15. Kf2 {[%clk 0:02:11]}  e5 {[%clk 0:02:22]} 16. Bb5 {[%clk 0:02:08]}  a6 {[%clk 0:02:14]} 17. Bc4 {[%clk 0:01:52]}  f6 {[%clk 0:01:49]} 18. Bf7 {[%clk 0:01:47]}  Rh8 {[%clk 0:01:34]} 19. Be7 {[%clk 0:01:46]}  Rde8 {[%clk 0:01:35]} 20. Bxe8 {[%clk 0:01:46]}  Rxe8 {[%clk 0:01:35]} 21. Ba3 {[%clk 0:01:46]}  e4 {[%clk 0:01:24]} 22. fxe4 {[%clk 0:01:41]}  Bxe4 {[%clk 0:01:23]} 23. Rae1 {[%clk 0:01:40]}  f5 {[%clk 0:00:55]} 24. c4 {[%clk 0:01:40]}  b5 {[%clk 0:00:43]} 25. cxb5 {[%clk 0:01:35]}  axb5 {[%clk 0:00:44]} 26. Bc5 {[%clk 0:01:33]}  Nf6 {[%clk 0:00:40]} 27. h3 {[%clk 0:01:28]}  Kd7 {[%clk 0:00:26]} 28. Rb1 {[%clk 0:01:22]}  Bxc2 {[%clk 0:00:22]} 29. Rb2 {[%clk 0:01:13]}  Bd3 {[%clk 0:00:20]} 30. Rc1 {[%clk 0:01:01]}  Ra8 {[%clk 0:00:15]} 31. Kg1 {[%clk 0:00:55]}  c6 {[%clk 0:00:10]} 32. a3 {[%clk 0:00:43]}  h5 {[%clk 0:00:09]} 33. Rd2 {[%clk 0:00:40]}  Bc4 {[%clk 0:00:06]} 34. Rf2 {[%clk 0:00:40]}  g6 {[%clk 0:00:05]} 35. Rb2 {[%clk 0:00:37]}  Ne4 {[%clk 0:00:02]} 36. Rb4 {[%clk 0:00:37]}  Ke6 {[%clk 0:00:02]} 37. a4 {[%clk 0:00:36]}  Kd5 {[%clk 0:00:02]} 38. axb5 {[%clk 0:00:36]}  cxb5 {[%clk 0:00:03]} 39. Rbb1 {[%clk 0:00:36]}  Ra2 {[%clk 0:00:03]} 40. Ra1 {[%clk 0:00:35]}  Re2 {[%clk 0:00:03]} 41. Re1 {[%clk 0:00:35]}  Rc2 {[%clk 0:00:02]} 42. Ra6 {[%clk 0:00:28]}  f4 {[%clk 0:00:01]} 43. Rxg6 {[%clk 0:00:26]}  Bd3 {[%clk 0:00:02]} 44. Rh6 {[%clk 0:00:23]}  Kc4 {[%clk 0:00:02]} 45. Rxh5 {[%clk 0:00:23]}  b4 {[%clk 0:00:02]} 46. Rh8 {[%clk 0:00:12]}  b3 {[%clk 0:00:02]} 47. Rb8 {[%clk 0:00:12]}  b2 {[%clk 0:00:02]} 48. Ba3 {[%clk 0:00:11]}  f3 {[%clk 0:00:01]} 49. gxf3 {[%clk 0:00:11]}  Ng5 {[%clk 0:00:02]} 50. Rf8 {[%clk 0:00:05]}  Nxh3+ {[%clk 0:00:02]} 51. Kh1 {[%clk 0:00:06]}  Nf2+ {[%clk 0:00:02]} 52. Kg1 {[%clk 0:00:06]}  Nh3+ {[%clk 0:00:02]} 53. Kh1 {[%clk 0:00:07]}  Be2 {[%clk 0:00:02]} 54. Rc8+ {[%clk 0:00:06]}  Kb3 {[%clk 0:00:02]} 55. Rxc2 {[%clk 0:00:07]}  b1=Q {[%clk 0:00:01]} 56. Rxb1+ {[%clk 0:00:07]}  Kxc2 {[%clk 0:00:01]} 57. Rb2+ {[%clk 0:00:07]}  Kd3 {[%clk 0:00:02]} 58. Kg2 {[%clk 0:00:08]}  Nf4+ {[%clk 0:00:02]} 59. Kg3 {[%clk 0:00:08]}  Nd5 {[%clk 0:00:00]} 60. Bb4 {[%clk 0:00:09]} 1-0


[Site "https://www.chess.com"]

[Event "Titled Tuesday Blitz June 20 Early 2023"]
[White "Ginzburg, Yakov"]
[Black "Hammer, Jon Ludvig"]
[WhiteFideId "4157176"]
[BlackFideId "1503707"]
[WhiteElo "2305"]
[BlackElo "2592"]
[Result "0-1"]
[Round "3"]
[TimeControl "180+2"]
[Date "2023.06.20"]
[WhiteClock "0:00:00"]
[BlackClock "0:01:11"]
[Board "84"]

1. d4 {[%clk 0:02:59]}  c5 {[%clk 0:02:56]} 2. c3 {[%clk 0:02:57]}  Nf6 {[%clk 0:02:41]} 3. Nf3 {[%clk 0:02:56]}  g6 {[%clk 0:02:31]} 4. g3 {[%clk 0:02:44]}  b6 {[%clk 0:02:23]} 5. Bg2 {[%clk 0:02:42]}  Bb7 {[%clk 0:02:23]} 6. O-O {[%clk 0:02:41]}  Bg7 {[%clk 0:02:23]} 7. a4 {[%clk 0:02:37]}  O-O {[%clk 0:02:06]} 8. a5 {[%clk 0:02:35]}  Na6 {[%clk 0:02:01]} 9. axb6 {[%clk 0:02:16]}  axb6 {[%clk 0:02:02]} 10. Bg5 {[%clk 0:02:10]}  h6 {[%clk 0:02:01]} 11. Bf4 {[%clk 0:02:09]}  d6 {[%clk 0:01:59]} 12. Qc1 {[%clk 0:02:01]}  g5 {[%clk 0:01:58]} 13. Be3 {[%clk 0:01:39]}  Nc7 {[%clk 0:01:58]} 14. Rxa8 {[%clk 0:01:38]}  Qxa8 {[%clk 0:01:58]} 15. Nbd2 {[%clk 0:01:25]}  Ncd5 {[%clk 0:01:54]} 16. Bxg5 {[%clk 0:01:00]}  hxg5 {[%clk 0:01:51]} 17. Nxg5 {[%clk 0:00:55]}  Nxc3 {[%clk 0:01:49]} 18. bxc3 {[%clk 0:00:28]}  Bxg2 {[%clk 0:01:48]} 19. Re1 {[%clk 0:00:25]}  Bc6 {[%clk 0:01:46]} 20. e4 {[%clk 0:00:24]}  Bh6 {[%clk 0:01:37]} 21. h4 {[%clk 0:00:22]}  Bxg5 {[%clk 0:01:34]} 22. hxg5 {[%clk 0:00:22]}  Nxe4 {[%clk 0:01:34]} 23. g6 {[%clk 0:00:15]}  fxg6 {[%clk 0:01:20]} 24. Nxe4 {[%clk 0:00:14]}  Bxe4 {[%clk 0:01:19]} 25. Qg5 {[%clk 0:00:14]}  Rf7 {[%clk 0:01:16]} 26. g4 {[%clk 0:00:00]}  Qd5 {[%clk 0:01:11]} 0-1


[Site "https://www.chess.com"]

[Event "Titled Tuesday Blitz June 20 Early 2023"]
[White "Shapiro, Viktor"]
[Black "Vakhlamov, Igor L."]
[WhiteFideId "4175700"]
[BlackFideId "24126748"]
[WhiteElo "2212"]
[BlackElo "2407"]
[Result "1/2-1/2"]
[Round "3"]
[TimeControl "180+2"]
[Date "2023.06.20"]
[WhiteClock "0:00:14"]
[BlackClock "0:00:22"]
[Board "87"]

1. c4 {[%clk 0:03:00]}  c5 {[%clk 0:02:44]} 2. Nc3 {[%clk 0:03:01]}  Nf6 {[%clk 0:02:44]} 3. g3 {[%clk 0:03:01]}  d5 {[%clk 0:02:41]} 4. cxd5 {[%clk 0:03:01]}  Nxd5 {[%clk 0:02:42]} 5. Bg2 {[%clk 0:03:02]}  Nc7 {[%clk 0:02:43]} 6. Nf3 {[%clk 0:03:02]}  Nc6 {[%clk 0:02:43]} 7. O-O {[%clk 0:03:02]}  e5 {[%clk 0:02:43]} 8. d3 {[%clk 0:03:03]}  Be7 {[%clk 0:02:43]} 9. Bd2 {[%clk 0:03:00]}  O-O {[%clk 0:02:42]} 10. a3 {[%clk 0:03:01]}  Be6 {[%clk 0:02:37]} 11. Rc1 {[%clk 0:03:01]}  Rc8 {[%clk 0:02:36]} 12. Na4 {[%clk 0:02:56]}  Na6 {[%clk 0:02:27]} 13. h4 {[%clk 0:02:40]}  f6 {[%clk 0:02:27]} 14. Be3 {[%clk 0:02:37]}  b6 {[%clk 0:02:13]} 15. h5 {[%clk 0:02:32]}  Qd7 {[%clk 0:02:10]} 16. h6 {[%clk 0:02:31]}  g6 {[%clk 0:02:09]} 17. Nc3 {[%clk 0:02:26]}  Nc7 {[%clk 0:02:07]} 18. Ne4 {[%clk 0:02:25]}  Nd5 {[%clk 0:02:07]} 19. Bd2 {[%clk 0:02:25]}  Rfd8 {[%clk 0:02:05]} 20. b4 {[%clk 0:02:18]}  cxb4 {[%clk 0:02:06]} 21. axb4 {[%clk 0:02:18]}  Ncxb4 {[%clk 0:02:02]} 22. Bxb4 {[%clk 0:02:15]}  Nxb4 {[%clk 0:01:58]} 23. Rxc8 {[%clk 0:02:14]}  Rxc8 {[%clk 0:01:58]} 24. Qb1 {[%clk 0:02:09]}  a5 {[%clk 0:01:52]} 25. Rd1 {[%clk 0:02:09]}  Rc2 {[%clk 0:01:42]} 26. d4 {[%clk 0:02:06]}  Qb5 {[%clk 0:01:10]} 27. dxe5 {[%clk 0:01:56]}  fxe5 {[%clk 0:01:10]} 28. Bf1 {[%clk 0:01:30]}  a4 {[%clk 0:01:03]} 29. e3 {[%clk 0:01:23]}  Qc6 {[%clk 0:00:58]} 30. Neg5 {[%clk 0:01:19]}  Bg4 {[%clk 0:00:50]} 31. Bg2 {[%clk 0:01:15]}  Qc3 {[%clk 0:00:36]} 32. Ne4 {[%clk 0:00:56]}  Qb2 {[%clk 0:00:34]} 33. Qxb2 {[%clk 0:00:49]}  Rxb2 {[%clk 0:00:35]} 34. Rc1 {[%clk 0:00:49]}  Rc2 {[%clk 0:00:30]} 35. Ra1 {[%clk 0:00:47]}  b5 {[%clk 0:00:27]} 36. Nxe5 {[%clk 0:00:47]}  Be6 {[%clk 0:00:19]} 37. Bf1 {[%clk 0:00:43]}  Bd5 {[%clk 0:00:17]} 38. Bxb5 {[%clk 0:00:33]}  Bxe4 {[%clk 0:00:16]} 39. Bxa4 {[%clk 0:00:33]}  Rb2 {[%clk 0:00:14]} 40. Bb5 {[%clk 0:00:29]}  Bf6 {[%clk 0:00:15]} 41. Bc4+ {[%clk 0:00:29]}  Kf8 {[%clk 0:00:14]} 42. Nd7+ {[%clk 0:00:28]}  Ke7 {[%clk 0:00:14]} 43. Ra7 {[%clk 0:00:25]}  Rb1+ {[%clk 0:00:12]} 44. Bf1 {[%clk 0:00:25]}  Bd3 {[%clk 0:00:12]} 45. Ne5+ {[%clk 0:00:24]}  Ke6 {[%clk 0:00:10]} 46. Nxd3 {[%clk 0:00:24]}  Nxd3 {[%clk 0:00:11]} 47. Rxh7 {[%clk 0:00:23]}  Ne5 {[%clk 0:00:11]} 48. Kg2 {[%clk 0:00:22]}  g5 {[%clk 0:00:11]} 49. Ra7 {[%clk 0:00:19]}  Kf5 {[%clk 0:00:06]} 50. h7 {[%clk 0:00:17]}  Kg6 {[%clk 0:00:07]} 51. Ra6 {[%clk 0:00:15]}  Rb8 {[%clk 0:00:06]} 52. f4 {[%clk 0:00:14]}  gxf4 {[%clk 0:00:06]} 53. exf4 {[%clk 0:00:14]}  Nf7 {[%clk 0:00:05]} 54. Bd3+ {[%clk 0:00:15]}  Kg7 {[%clk 0:00:05]} 55. Ra7 {[%clk 0:00:14]}  Bd4 {[%clk 0:00:05]} 56. Rd7 {[%clk 0:00:13]}  Rd8 {[%clk 0:00:06]} 57. Rb7 {[%clk 0:00:10]}  Rc8 {[%clk 0:00:04]} 58. Be4 {[%clk 0:00:08]}  Rd8 {[%clk 0:00:03]} 59. g4 {[%clk 0:00:08]}  Be3 {[%clk 0:00:01]} 60. Kf3 {[%clk 0:00:08]}  Bc5 {[%clk 0:00:02]} 61. g5 {[%clk 0:00:08]}  Rf8 {[%clk 0:00:01]} 62. g6 {[%clk 0:00:08]}  Bd4 {[%clk 0:00:02]} 63. Bd5 {[%clk 0:00:08]}  Kxg6 {[%clk 0:00:02]} 64. Bxf7+ {[%clk 0:00:05]}  Kxh7 {[%clk 0:00:02]} 65. Bd5+ {[%clk 0:00:05]}  Kh6 {[%clk 0:00:03]} 66. Be4 {[%clk 0:00:06]}  Bg7 {[%clk 0:00:03]} 67. Kg4 {[%clk 0:00:06]}  Rf6 {[%clk 0:00:03]} 68. Rb8 {[%clk 0:00:06]}  Bf8 {[%clk 0:00:03]} 69. Rb7 {[%clk 0:00:06]}  Bg7 {[%clk 0:00:03]} 70. Rb5 {[%clk 0:00:06]}  Bf8 {[%clk 0:00:02]} 71. Rg5 {[%clk 0:00:06]}  Re6 {[%clk 0:00:01]} 72. Bf5 {[%clk 0:00:06]}  Rf6 {[%clk 0:00:01]} 73. Rg8 {[%clk 0:00:06]}  Bg7 {[%clk 0:00:01]} 74. Re8 {[%clk 0:00:05]}  Rf7 {[%clk 0:00:01]} 75. Re6+ {[%clk 0:00:05]}  Rf6 {[%clk 0:00:02]} 76. Re2 {[%clk 0:00:05]}  Bf8 {[%clk 0:00:01]} 77. Rh2+ {[%clk 0:00:04]}  Kg7 {[%clk 0:00:02]} 78. Rh7+ {[%clk 0:00:05]}  Kg8 {[%clk 0:00:02]} 79. Rd7 {[%clk 0:00:06]}  Bd6 {[%clk 0:00:03]} 80. Kg5 {[%clk 0:00:05]}  Be7 {[%clk 0:00:01]} 81. Rxe7 {[%clk 0:00:05]}  Rb6 {[%clk 0:00:02]} 82. Be6+ {[%clk 0:00:05]}  Kf8 {[%clk 0:00:02]} 83. Rf7+ {[%clk 0:00:06]}  Ke8 {[%clk 0:00:02]} 84. Kf6 {[%clk 0:00:05]}  Rb3 {[%clk 0:00:03]} 85. f5 {[%clk 0:00:06]}  Rh3 {[%clk 0:00:03]} 86. Rb7 {[%clk 0:00:06]}  Rh6+ {[%clk 0:00:04]} 87. Ke5 {[%clk 0:00:06]}  Rh1 {[%clk 0:00:04]} 88. f6 {[%clk 0:00:06]}  Re1+ {[%clk 0:00:04]} 89. Kd6 {[%clk 0:00:06]}  Rd1+ {[%clk 0:00:04]} 90. Bd5 {[%clk 0:00:07]}  Rb1 {[%clk 0:00:05]} 91. Rb8+ {[%clk 0:00:07]}  Rxb8 {[%clk 0:00:05]} 92. Ke6 {[%clk 0:00:06]}  Kf8 {[%clk 0:00:06]} 93. Kf5 {[%clk 0:00:07]}  Rb6 {[%clk 0:00:06]} 94. Be6 {[%clk 0:00:07]}  Rb5+ {[%clk 0:00:07]} 95. Kg6 {[%clk 0:00:07]}  Rb6 {[%clk 0:00:07]} 96. Bd5 {[%clk 0:00:07]}  Rb5 {[%clk 0:00:08]} 97. Be6 {[%clk 0:00:08]}  Rb2 {[%clk 0:00:09]} 98. Bd5 {[%clk 0:00:08]}  Rf2 {[%clk 0:00:09]} 99. Be6 {[%clk 0:00:08]}  Re2 {[%clk 0:00:10]} 100. Bd5 {[%clk 0:00:09]}  Re3 {[%clk 0:00:11]} 101. Bc4 {[%clk 0:00:09]}  Rg3+ {[%clk 0:00:11]} 102. Kf5 {[%clk 0:00:09]}  Rc3 {[%clk 0:00:12]} 103. Bd5 {[%clk 0:00:09]}  Rc5 {[%clk 0:00:13]} 104. Ke5 {[%clk 0:00:09]}  Ra5 {[%clk 0:00:14]} 105. Kd6 {[%clk 0:00:10]}  Ra7 {[%clk 0:00:14]} 106. Ke5 {[%clk 0:00:10]}  Ra1 {[%clk 0:00:15]} 107. Kf5 {[%clk 0:00:10]}  Rd1 {[%clk 0:00:15]} 108. Ke5 {[%clk 0:00:11]}  Re1+ {[%clk 0:00:16]} 109. Kf5 {[%clk 0:00:11]}  Rd1 {[%clk 0:00:16]} 110. Ke5 {[%clk 0:00:12]}  Rf1 {[%clk 0:00:17]} 111. Be6 {[%clk 0:00:12]}  Rf2 {[%clk 0:00:18]} 112. Bd5 {[%clk 0:00:12]}  Rh2 {[%clk 0:00:18]} 113. Be6 {[%clk 0:00:12]}  Rh5+ {[%clk 0:00:19]} 114. Kf4 {[%clk 0:00:12]}  Rh2 {[%clk 0:00:20]} 115. Ke5 {[%clk 0:00:13]}  Rb2 {[%clk 0:00:21]} 116. Kf5 {[%clk 0:00:13]}  Rh2 {[%clk 0:00:22]} 117. Ke5 {[%clk 0:00:14]} 1/2-1/2


[Site "https://www.chess.com"]

[Event "Titled Tuesday Blitz June 20 Early 2023"]
[White "splendidkid"]
[Black "Yeritsyan, Hayk"]
[BlackFideId "13307320"]
[WhiteElo "2744"]
[BlackElo "2495"]
[Result "1-0"]
[Round "3"]
[TimeControl "180+2"]
[Date "2023.06.20"]
[WhiteClock "0:00:09"]
[BlackClock "0:00:00"]
[Board "88"]

1. d4 {[%clk 0:03:00]}  Nf6 {[%clk 0:02:58]} 2. Nf3 {[%clk 0:03:00]}  g6 {[%clk 0:02:57]} 3. c4 {[%clk 0:03:00]}  Bg7 {[%clk 0:02:55]} 4. Nc3 {[%clk 0:03:00]}  d5 {[%clk 0:02:53]} 5. Bg5 {[%clk 0:03:01]}  Ne4 {[%clk 0:02:50]} 6. Bf4 {[%clk 0:03:01]}  Nxc3 {[%clk 0:02:50]} 7. bxc3 {[%clk 0:03:02]}  dxc4 {[%clk 0:02:47]} 8. e3 {[%clk 0:03:03]}  O-O {[%clk 0:02:46]} 9. Bxc4 {[%clk 0:03:03]}  c5 {[%clk 0:02:46]} 10. O-O {[%clk 0:03:03]}  Nc6 {[%clk 0:02:42]} 11. Rb1 {[%clk 0:03:03]}  b6 {[%clk 0:02:37]} 12. Qa4 {[%clk 0:03:01]}  Na5 {[%clk 0:02:30]} 13. Bd3 {[%clk 0:03:00]}  Bd7 {[%clk 0:02:24]} 14. Qa3 {[%clk 0:03:00]}  c4 {[%clk 0:02:21]} 15. Be4 {[%clk 0:02:48]}  Bc6 {[%clk 0:02:20]} 16. Bxc6 {[%clk 0:02:47]}  Nxc6 {[%clk 0:02:21]} 17. Qa4 {[%clk 0:02:46]}  Na5 {[%clk 0:02:15]} 18. h4 {[%clk 0:02:46]}  h6 {[%clk 0:02:12]} 19. e4 {[%clk 0:02:35]}  e6 {[%clk 0:01:57]} 20. Rfe1 {[%clk 0:02:26]}  Qe8 {[%clk 0:01:49]} 21. Qc2 {[%clk 0:02:22]}  Qc6 {[%clk 0:01:48]} 22. Qd2 {[%clk 0:02:20]}  Kh7 {[%clk 0:01:47]} 23. Ne5 {[%clk 0:02:13]}  Qb7 {[%clk 0:01:41]} 24. Ng4 {[%clk 0:02:04]}  h5 {[%clk 0:01:40]} 25. Ne5 {[%clk 0:02:05]}  Rad8 {[%clk 0:01:38]} 26. Qe2 {[%clk 0:01:51]}  Qc8 {[%clk 0:01:28]} 27. g3 {[%clk 0:01:27]}  f6 {[%clk 0:01:23]} 28. Nf3 {[%clk 0:01:26]}  Rde8 {[%clk 0:01:13]} 29. e5 {[%clk 0:01:14]}  f5 {[%clk 0:01:08]} 30. Red1 {[%clk 0:01:08]}  Rd8 {[%clk 0:01:07]} 31. Bg5 {[%clk 0:01:06]}  Rd5 {[%clk 0:01:06]} 32. Ne1 {[%clk 0:01:04]}  Qd7 {[%clk 0:00:37]} 33. Ng2 {[%clk 0:01:01]}  Bh6 {[%clk 0:00:35]} 34. Bxh6 {[%clk 0:00:59]}  Kxh6 {[%clk 0:00:36]} 35. Qd2+ {[%clk 0:00:35]}  Kg7 {[%clk 0:00:36]} 36. Qg5 {[%clk 0:00:36]}  Qd8 {[%clk 0:00:32]} 37. Nf4 {[%clk 0:00:36]}  Qxg5 {[%clk 0:00:25]} 38. Nxe6+ {[%clk 0:00:17]}  Kf7 {[%clk 0:00:25]} 39. Nxg5+ {[%clk 0:00:17]}  Ke7 {[%clk 0:00:25]} 40. Nh3 {[%clk 0:00:18]}  Rdd8 {[%clk 0:00:09]} 41. Nf4 {[%clk 0:00:18]}  Rg8 {[%clk 0:00:09]} 42. d5 {[%clk 0:00:18]}  Nb7 {[%clk 0:00:09]} 43. d6+ {[%clk 0:00:16]}  Kf7 {[%clk 0:00:10]} 44. Rb4 {[%clk 0:00:12]}  Rge8 {[%clk 0:00:03]} 45. e6+ {[%clk 0:00:12]}  Rxe6 {[%clk 0:00:02]} 46. Nxe6 {[%clk 0:00:13]}  Kxe6 {[%clk 0:00:03]} 47. Rxc4 {[%clk 0:00:12]}  Nxd6 {[%clk 0:00:02]} 48. Rcd4 {[%clk 0:00:11]}  Rd7 {[%clk 0:00:02]} 49. Kg2 {[%clk 0:00:10]}  b5 {[%clk 0:00:02]} 50. Kf3 {[%clk 0:00:10]}  a6 {[%clk 0:00:03]} 51. Kf4 {[%clk 0:00:10]}  Rd8 {[%clk 0:00:03]} 52. f3 {[%clk 0:00:10]}  Rd7 {[%clk 0:00:02]} 53. a3 {[%clk 0:00:10]}  Rd8 {[%clk 0:00:02]} 54. Re1+ {[%clk 0:00:10]}  Kf6 {[%clk 0:00:02]} 55. Rd5 {[%clk 0:00:07]}  Nf7 {[%clk 0:00:01]} 56. Rxd8 {[%clk 0:00:07]}  Nxd8 {[%clk 0:00:02]} 57. Ke3 {[%clk 0:00:08]}  Ke5 {[%clk 0:00:02]} 58. Kd3+ {[%clk 0:00:07]}  Kd5 {[%clk 0:00:02]} 59. Re8 {[%clk 0:00:08]}  Ne6 {[%clk 0:00:03]} 60. Rg8 {[%clk 0:00:08]}  f4 {[%clk 0:00:01]} 61. Rxg6 {[%clk 0:00:08]}  fxg3 {[%clk 0:00:02]} 62. Rxg3 {[%clk 0:00:09]}  Ke5 {[%clk 0:00:01]} 63. Ke3 {[%clk 0:00:09]}  Kf5 {[%clk 0:00:00]} 64. f4 {[%clk 0:00:09]} 1-0


[Site "https://www.chess.com"]

[Event "Titled Tuesday Blitz June 20 Early 2023"]
[White "Kim, Yoon-Young"]
[Black "Bruedigam, Martin"]
[WhiteFideId "30908779"]
[BlackFideId "24608033"]
[WhiteElo "2217"]
[BlackElo "2331"]
[Result "1/2-1/2"]
[Round "3"]
[TimeControl "180+2"]
[Date "2023.06.20"]
[WhiteClock "0:00:19"]
[BlackClock "0:00:03"]
[Board "89"]

1. c4 {[%clk 0:03:00]}  e5 {[%clk 0:02:56]} 2. Nc3 {[%clk 0:03:00]}  Bb4 {[%clk 0:02:56]} 3. e3 {[%clk 0:02:58]}  Bxc3 {[%clk 0:02:55]} 4. dxc3 {[%clk 0:02:46]}  d6 {[%clk 0:02:55]} 5. Ne2 {[%clk 0:02:41]}  Nf6 {[%clk 0:02:54]} 6. Ng3 {[%clk 0:02:42]}  h6 {[%clk 0:02:53]} 7. Be2 {[%clk 0:02:42]}  Be6 {[%clk 0:02:53]} 8. O-O {[%clk 0:02:43]}  Nbd7 {[%clk 0:02:50]} 9. f4 {[%clk 0:02:43]}  Nb6 {[%clk 0:02:44]} 10. b3 {[%clk 0:02:24]}  Qe7 {[%clk 0:02:39]} 11. e4 {[%clk 0:02:17]}  exf4 {[%clk 0:02:33]} 12. Bxf4 {[%clk 0:02:18]}  Nbd7 {[%clk 0:02:28]} 13. Qd4 {[%clk 0:02:01]}  O-O {[%clk 0:02:23]} 14. Rae1 {[%clk 0:01:57]}  Ng4 {[%clk 0:02:16]} 15. Nf5 {[%clk 0:01:49]}  Bxf5 {[%clk 0:02:12]} 16. exf5 {[%clk 0:01:48]}  Nge5 {[%clk 0:02:07]} 17. Bg3 {[%clk 0:01:31]}  a6 {[%clk 0:02:02]} 18. Bh4 {[%clk 0:01:31]}  Nf6 {[%clk 0:02:02]} 19. Bd1 {[%clk 0:01:26]}  Rfe8 {[%clk 0:02:01]} 20. Re3 {[%clk 0:01:20]}  Qf8 {[%clk 0:01:52]} 21. Bxf6 {[%clk 0:01:15]}  gxf6 {[%clk 0:01:53]} 22. Qf4 {[%clk 0:01:02]}  Kh7 {[%clk 0:01:51]} 23. Rg3 {[%clk 0:00:51]}  Nc6 {[%clk 0:01:33]} 24. Bf3 {[%clk 0:00:50]}  Re5 {[%clk 0:01:31]} 25. h3 {[%clk 0:00:31]}  Rae8 {[%clk 0:01:30]} 26. Kh2 {[%clk 0:00:31]}  Re1 {[%clk 0:01:28]} 27. Rxe1 {[%clk 0:00:25]}  Rxe1 {[%clk 0:01:29]} 28. Bh5 {[%clk 0:00:22]}  Re5 {[%clk 0:01:11]} 29. b4 {[%clk 0:00:19]}  Ne7 {[%clk 0:01:10]} 30. Bg4 {[%clk 0:00:18]}  a5 {[%clk 0:00:54]} 31. Bf3 {[%clk 0:00:19]}  b6 {[%clk 0:00:52]} 32. Be4 {[%clk 0:00:19]}  c6 {[%clk 0:00:38]} 33. a3 {[%clk 0:00:19]}  d5 {[%clk 0:00:38]} 34. cxd5 {[%clk 0:00:20]}  Nxd5 {[%clk 0:00:29]} 35. Qh4 {[%clk 0:00:20]}  Qd6 {[%clk 0:00:23]} 36. Qg4 {[%clk 0:00:20]}  Qf8 {[%clk 0:00:20]} 37. c4 {[%clk 0:00:19]}  Ne7 {[%clk 0:00:12]} 38. Qh4 {[%clk 0:00:19]}  Ng8 {[%clk 0:00:08]} 39. Qg4 {[%clk 0:00:18]}  axb4 {[%clk 0:00:07]} 40. axb4 {[%clk 0:00:19]}  c5 {[%clk 0:00:08]} 41. b5 {[%clk 0:00:19]}  Ne7 {[%clk 0:00:07]} 42. Qh4 {[%clk 0:00:19]}  Ng8 {[%clk 0:00:07]} 43. Bd5 {[%clk 0:00:20]}  Kh8 {[%clk 0:00:05]} 44. Qh5 {[%clk 0:00:20]}  Re7 {[%clk 0:00:04]} 45. Rg4 {[%clk 0:00:19]}  Kh7 {[%clk 0:00:04]} 46. Rg3 {[%clk 0:00:19]}  Kh8 {[%clk 0:00:04]} 47. Qg4 {[%clk 0:00:19]}  Kh7 {[%clk 0:00:04]} 48. Qf4 {[%clk 0:00:20]}  Re5 {[%clk 0:00:03]} 49. Qf3 {[%clk 0:00:19]}  Ne7 {[%clk 0:00:02]} 50. Be4 {[%clk 0:00:19]}  Qb8 {[%clk 0:00:01]} 51. Qg4 {[%clk 0:00:18]}  Qf8 {[%clk 0:00:01]} 52. Kh1 {[%clk 0:00:19]}  Ng8 {[%clk 0:00:01]} 53. Qh4 {[%clk 0:00:19]}  Re7 {[%clk 0:00:01]} 54. Bd5 {[%clk 0:00:19]}  Re5 {[%clk 0:00:02]} 55. Qh5 {[%clk 0:00:19]}  Re7 {[%clk 0:00:03]} 56. Kh2 {[%clk 0:00:19]}  Kh8 {[%clk 0:00:03]} 1/2-1/2


[Site "https://www.chess.com"]